[Event "Late-Titled-Tuesday-Blitz-September-12-2023"]
[Site "Chess.com"]
[Date "2023.09.12"]
[Round "1"]
[White "salomez"]
[Black "Gentlejimmy7"]
[Result "1/2-1/2"]
[WhiteElo "2289"]
[BlackElo "2564"]
[TimeControl "180+1"]
[EndTime "14:05:01 PDT"]
[Termination "Game drawn by agreement"]

1. e4 {[%clk 0:02:54.9]} 1... c5 {[%clk 0:02:59.7]} 2. Nf3 {[%clk 0:02:54.7]}
2... e6 {[%clk 0:02:59.2]} 3. d4 {[%clk 0:02:53.5]} 3... cxd4 {[%clk 0:02:59.8]}
4. Nxd4 {[%clk 0:02:54.4]} 4... a6 {[%clk 0:02:59.5]} 5. Nc3 {[%clk 0:02:54.1]}
5... Qc7 {[%clk 0:02:59.2]} 6. Be3 {[%clk 0:02:53.1]} 6... Nf6 {[%clk 0:02:58]}
7. f3 {[%clk 0:02:53.3]} 7... b5 {[%clk 0:02:53.8]} 8. Qd2 {[%clk 0:02:53.1]}
8... Bb7 {[%clk 0:02:51.3]} 9. g4 {[%clk 0:02:52]} 9... b4 {[%clk 0:02:43.4]}
10. Nce2 {[%clk 0:02:46.4]} 10... d5 {[%clk 0:02:42.8]} 11. g5 {[%clk
0:02:34.9]} 11... Nfd7 {[%clk 0:02:27]} 12. exd5 {[%clk 0:02:29.2]} 12... Bxd5
{[%clk 0:02:25.1]} 13. Bg2 {[%clk 0:01:57.8]} 13... Be7 {[%clk 0:02:05.6]} 14.
O-O {[%clk 0:01:57.3]} 14... O-O {[%clk 0:02:03]} 15. Nf4 {[%clk 0:01:56.6]}
15... Bb7 {[%clk 0:01:59.9]} 16. Ndxe6 {[%clk 0:01:54.7]} 16... fxe6 {[%clk
0:01:57]} 17. Nxe6 {[%clk 0:01:55.6]} 17... Qd6 {[%clk 0:01:53.1]} 18. Qxd6
{[%clk 0:01:38.9]} 18... Bxd6 {[%clk 0:01:52.1]} 19. Rad1 {[%clk 0:01:28.5]}
19... Be7 {[%clk 0:01:22.4]} 20. Nxf8 {[%clk 0:00:55.2]} 20... Kxf8 {[%clk
0:01:21.4]} 21. f4 {[%clk 0:00:52.6]} 21... Bxg2 {[%clk 0:01:18.8]} 22. Kxg2
{[%clk 0:00:53.5]} 22... Ke8 {[%clk 0:01:11.9]} 23. f5 {[%clk 0:00:50.8]}
1/2-1/2

[Event "Late-Titled-Tuesday-Blitz-September-12-2023"]
[Site "Chess.com"]
[Date "2023.09.12"]
[Round "1"]
[White "Kosak12"]
[Black "Sinquefield"]
[Result "1-0"]
[WhiteElo "2792"]
[BlackElo "2431"]
[TimeControl "180+1"]
[EndTime "14:05:03 PDT"]
[Termination "Kosak12 won by resignation"]

1. e4 {[%clk 0:02:57.3]} 1... e6 {[%clk 0:02:58.6]} 2. d3 {[%clk 0:02:02.7]}
2... d5 {[%clk 0:02:51.4]} 3. Qe2 {[%clk 0:02:02.6]} 3... d4 {[%clk 0:02:48.2]}
4. f4 {[%clk 0:02:01.6]} 4... c5 {[%clk 0:02:45.5]} 5. Nf3 {[%clk 0:02:01.6]}
5... Nc6 {[%clk 0:02:46.1]} 6. g3 {[%clk 0:02:01.6]} 6... Bd6 {[%clk 0:02:41.5]}
7. Bg2 {[%clk 0:02:01.6]} 7... Nge7 {[%clk 0:02:39.8]} 8. Nbd2 {[%clk
0:01:59.9]} 8... f6 {[%clk 0:02:39.4]} 9. O-O {[%clk 0:01:51.9]} 9... e5 {[%clk
0:02:37.1]} 10. fxe5 {[%clk 0:01:50.2]} 10... Nxe5 {[%clk 0:02:36.8]} 11. Nxe5
{[%clk 0:01:50.2]} 11... Bxe5 {[%clk 0:02:37.2]} 12. Nc4 {[%clk 0:01:48.5]}
12... O-O {[%clk 0:02:36.1]} 13. Nxe5 {[%clk 0:01:47.3]} 13... fxe5 {[%clk
0:02:36.2]} 14. Bg5 {[%clk 0:01:47.5]} 14... Be6 {[%clk 0:02:31.7]} 15. Qh5
{[%clk 0:01:46.2]} 15... Qd7 {[%clk 0:02:26.4]} 16. Bxe7 {[%clk 0:01:44.9]}
16... Qxe7 {[%clk 0:02:26.5]} 17. Qxe5 {[%clk 0:01:45]} 17... h6 {[%clk
0:02:23.2]} 18. Bh3 {[%clk 0:01:42.3]} 18... Rfe8 {[%clk 0:02:17.8]} 19. Bxe6+
{[%clk 0:01:24.6]} 19... Qxe6 {[%clk 0:02:18.7]} 20. Qxc5 {[%clk 0:01:25]} 20...
Rac8 {[%clk 0:02:11.9]} 21. Qxd4 {[%clk 0:01:25]} 21... Rxc2 {[%clk 0:02:09.5]}
22. Rf2 {[%clk 0:01:25]} 22... Rec8 {[%clk 0:02:02.9]} 23. Qxa7 {[%clk
0:01:13.2]} 23... b6 {[%clk 0:01:55.7]} 24. Raf1 {[%clk 0:01:08.9]} 24... Rxf2
{[%clk 0:01:34.1]} 25. Rxf2 {[%clk 0:01:07.7]} 25... Qh3 {[%clk 0:01:32]} 26.
Qf7+ {[%clk 0:01:04.8]} 26... Kh8 {[%clk 0:01:30.8]} 27. Qf5 {[%clk 0:00:59.2]}
27... Rc1+ {[%clk 0:01:22.1]} 28. Rf1 {[%clk 0:00:59.1]} 28... Rxf1+ {[%clk
0:01:22.1]} 29. Qxf1 {[%clk 0:00:59]} 29... Qd7 {[%clk 0:01:23]} 30. Qf8+ {[%clk
0:00:59]} 1-0

[Event "Late-Titled-Tuesday-Blitz-September-12-2023"]
[Site "Chess.com"]
[Date "2023.09.12"]
[Round "1"]
[White "Chesstrainer1"]
[Black "vladislavkovalev"]
[Result "0-1"]
[WhiteElo "2459"]
[BlackElo "2895"]
[TimeControl "180+1"]
[EndTime "14:05:06 PDT"]
[Termination "vladislavkovalev won on time"]

1. e4 {[%clk 0:03:00.1]} 1... e5 {[%clk 0:03:00.1]} 2. Nf3 {[%clk 0:02:59.2]}
2... Nc6 {[%clk 0:03:00.5]} 3. Bb5 {[%clk 0:02:51.2]} 3... a6 {[%clk 0:03:00.4]}
4. Ba4 {[%clk 0:02:50.6]} 4... d6 {[%clk 0:03:00.3]} 5. O-O {[%clk 0:02:29.6]}
5... Bd7 {[%clk 0:02:58.9]} 6. c3 {[%clk 0:02:26.1]} 6... Nf6 {[%clk 0:02:58.3]}
7. Re1 {[%clk 0:02:24.3]} 7... g6 {[%clk 0:02:58.5]} 8. d4 {[%clk 0:02:23.7]}
8... Bg7 {[%clk 0:02:58.4]} 9. d5 {[%clk 0:02:16]} 9... Ne7 {[%clk 0:02:55.2]}
10. c4 {[%clk 0:02:11.7]} 10... O-O {[%clk 0:02:52]} 11. Nc3 {[%clk 0:02:06.2]}
11... Bxa4 {[%clk 0:02:47.5]} 12. Qxa4 {[%clk 0:02:04.7]} 12... Nh5 {[%clk
0:02:40.6]} 13. Be3 {[%clk 0:01:43]} 13... b6 {[%clk 0:02:40.4]} 14. b4 {[%clk
0:01:40.2]} 14... a5 {[%clk 0:02:40.8]} 15. bxa5 {[%clk 0:01:28.5]} 15... Rxa5
{[%clk 0:02:41.7]} 16. Qc2 {[%clk 0:01:26.7]} 16... h6 {[%clk 0:02:41.9]} 17.
Nd2 {[%clk 0:01:26]} 17... f5 {[%clk 0:02:41.8]} 18. Nb3 {[%clk 0:01:25.6]}
18... Ra8 {[%clk 0:02:39.4]} 19. f3 {[%clk 0:01:13.7]} 19... fxe4 {[%clk
0:02:34.8]} 20. fxe4 {[%clk 0:01:08.9]} 20... Nf4 {[%clk 0:02:34.5]} 21. a4
{[%clk 0:01:04.4]} 21... Qd7 {[%clk 0:02:34.9]} 22. a5 {[%clk 0:00:54.2]} 22...
bxa5 {[%clk 0:02:35.8]} 23. Nxa5 {[%clk 0:00:51.6]} 23... g5 {[%clk 0:02:31]}
24. c5 {[%clk 0:00:43.5]} 24... Neg6 {[%clk 0:02:31]} 25. g3 {[%clk 0:00:27.6]}
25... Qg4 {[%clk 0:02:24.2]} 26. Nc6 {[%clk 0:00:15.8]} 26... Nh3+ {[%clk
0:02:15.9]} 27. Kh1 {[%clk 0:00:14.4]} 27... Rxa1 {[%clk 0:02:16.4]} 28. Rxa1
{[%clk 0:00:13.4]} 28... Qf3+ {[%clk 0:02:17.1]} 29. Qg2 {[%clk 0:00:11.9]}
29... Qxe3 {[%clk 0:02:17.8]} 30. Qxh3 {[%clk 0:00:07.8]} 30... Qxc3 {[%clk
0:02:18.4]} 31. Qe6+ {[%clk 0:00:06.5]} 31... Kh7 {[%clk 0:02:18.4]} 0-1

[Event "Late-Titled-Tuesday-Blitz-September-12-2023"]
[Site "Chess.com"]
[Date "2023.09.12"]
[Round "1"]
[White "GMForgacs"]
[Black "Cayse"]
[Result "1-0"]
[WhiteElo "2461"]
[BlackElo "2830"]
[TimeControl "180+1"]
[EndTime "14:05:12 PDT"]
[Termination "GMForgacs won on time"]

1. e4 {[%clk 0:03:00.9]} 1... e5 {[%clk 0:02:59.9]} 2. Nf3 {[%clk 0:03:01]} 2...
Nc6 {[%clk 0:03:00.5]} 3. Bb5 {[%clk 0:03:01.6]} 3... a6 {[%clk 0:03:00.5]} 4.
Ba4 {[%clk 0:03:02.2]} 4... Nf6 {[%clk 0:03:00.2]} 5. O-O {[%clk 0:03:02.9]}
5... Be7 {[%clk 0:03:00.4]} 6. Re1 {[%clk 0:03:03]} 6... b5 {[%clk 0:03:00.6]}
7. Bb3 {[%clk 0:03:03.7]} 7... O-O {[%clk 0:03:01.2]} 8. a4 {[%clk 0:03:03]}
8... b4 {[%clk 0:03:01]} 9. d3 {[%clk 0:03:03.7]} 9... d6 {[%clk 0:03:00.8]} 10.
Nbd2 {[%clk 0:03:02.6]} 10... Na5 {[%clk 0:03:00.8]} 11. Ba2 {[%clk 0:03:00.8]}
11... c5 {[%clk 0:03:00.8]} 12. Nc4 {[%clk 0:02:57.3]} 12... Rb8 {[%clk
0:02:47.1]} 13. Nxa5 {[%clk 0:02:56.6]} 13... Qxa5 {[%clk 0:02:48]} 14. Bb3
{[%clk 0:02:56.9]} 14... h6 {[%clk 0:02:45]} 15. h3 {[%clk 0:02:57.1]} 15... Be6
{[%clk 0:02:44.8]} 16. Be3 {[%clk 0:02:55.9]} 16... Qc7 {[%clk 0:02:37.3]} 17.
Nd2 {[%clk 0:02:47.9]} 17... d5 {[%clk 0:02:36.5]} 18. exd5 {[%clk 0:02:46.4]}
18... Nxd5 {[%clk 0:02:37.1]} 19. Nc4 {[%clk 0:02:45.5]} 19... Bf6 {[%clk
0:02:34.8]} 20. Qf3 {[%clk 0:02:36.6]} 20... Rbd8 {[%clk 0:02:34.1]} 21. Rad1
{[%clk 0:02:34.5]} 21... Rfe8 {[%clk 0:02:33.6]} 22. Qg3 {[%clk 0:02:27.2]}
22... Nf4 {[%clk 0:02:32.5]} 23. Bc1 {[%clk 0:01:46.4]} 1-0

[Event "Late-Titled-Tuesday-Blitz-September-12-2023"]
[Site "Chess.com"]
[Date "2023.09.12"]
[Round "1"]
[White "Atanejhad"]
[Black "m_ezat"]
[Result "1-0"]
[WhiteElo "2414"]
[BlackElo "2659"]
[TimeControl "180+1"]
[EndTime "14:05:17 PDT"]
[Termination "Atanejhad won on time"]

1. d4 {[%clk 0:02:59.4]} 1... Nf6 {[%clk 0:02:58.7]} 2. c4 {[%clk 0:02:59.1]}
2... g6 {[%clk 0:02:53.2]} 3. Nc3 {[%clk 0:02:57.6]} 3... Bg7 {[%clk 0:02:53.6]}
4. e4 {[%clk 0:02:57]} 4... d6 {[%clk 0:02:53.9]} 5. f3 {[%clk 0:02:57.4]} 5...
O-O {[%clk 0:02:54.4]} 6. Be3 {[%clk 0:02:57.4]} 6... Nc6 {[%clk 0:02:53.9]} 7.
Nge2 {[%clk 0:02:55.4]} 7... a6 {[%clk 0:02:52.7]} 8. Qd2 {[%clk 0:02:53]} 8...
Rb8 {[%clk 0:02:50.8]} 9. Rc1 {[%clk 0:02:53.4]} 9... Bd7 {[%clk 0:02:49.9]} 10.
h4 {[%clk 0:02:51.2]} 10... h5 {[%clk 0:02:49.1]} 11. Bh6 {[%clk 0:02:49.8]}
11... b5 {[%clk 0:02:46.1]} 12. cxb5 {[%clk 0:02:47.1]} 12... axb5 {[%clk
0:02:45.4]} 13. Bxg7 {[%clk 0:02:41.7]} 13... Kxg7 {[%clk 0:02:44.2]} 14. Nd5
{[%clk 0:02:36.7]} 14... e6 {[%clk 0:02:31.2]} 15. Ne3 {[%clk 0:02:23.7]} 15...
Ne7 {[%clk 0:02:21.4]} 16. g3 {[%clk 0:02:08.2]} 16... c6 {[%clk 0:02:04.4]} 17.
Bg2 {[%clk 0:02:03.2]} 17... Qb6 {[%clk 0:01:57]} 18. O-O {[%clk 0:01:58]} 18...
c5 {[%clk 0:01:50.5]} 19. dxc5 {[%clk 0:01:48]} 19... dxc5 {[%clk 0:01:46.5]}
20. Kh2 {[%clk 0:01:48.2]} 20... Rbd8 {[%clk 0:01:42.1]} 21. b3 {[%clk
0:01:47.1]} 21... Bc6 {[%clk 0:00:01.4]} 22. Qc3 {[%clk 0:01:44.3]} 1-0

[Event "Late-Titled-Tuesday-Blitz-September-12-2023"]
[Site "Chess.com"]
[Date "2023.09.12"]
[Round "1"]
[White "ferdipy"]
[Black "becemix"]
[Result "1-0"]
[WhiteElo "2273"]
[BlackElo "2534"]
[TimeControl "180+1"]
[EndTime "14:05:19 PDT"]
[Termination "ferdipy won by resignation"]

1. e4 {[%clk 0:02:58.9]} 1... e6 {[%clk 0:03:00.2]} 2. d4 {[%clk 0:02:57.2]}
2... d5 {[%clk 0:03:00.5]} 3. Nc3 {[%clk 0:02:56.8]} 3... Bb4 {[%clk 0:02:54.5]}
4. e5 {[%clk 0:02:56.6]} 4... c5 {[%clk 0:02:54.9]} 5. a3 {[%clk 0:02:57.3]}
5... Bxc3+ {[%clk 0:02:55.2]} 6. bxc3 {[%clk 0:02:58.2]} 6... Qc7 {[%clk
0:02:55.7]} 7. Qg4 {[%clk 0:02:58.7]} 7... f5 {[%clk 0:02:55.3]} 8. Qg3 {[%clk
0:02:57.9]} 8... Nc6 {[%clk 0:02:54.4]} 9. Ne2 {[%clk 0:02:55.5]} 9... Nge7
{[%clk 0:02:48.3]} 10. Qxg7 {[%clk 0:02:47.8]} 10... Rg8 {[%clk 0:02:48.6]} 11.
Qxh7 {[%clk 0:02:47.5]} 11... Bd7 {[%clk 0:02:45.5]} 12. Qh4 {[%clk 0:02:33.6]}
12... cxd4 {[%clk 0:02:41.8]} 13. cxd4 {[%clk 0:02:31]} 13... O-O-O {[%clk
0:02:35.4]} 14. c3 {[%clk 0:02:25.1]} 14... Na5 {[%clk 0:02:22.7]} 15. Qxe7
{[%clk 0:02:20.4]} 15... Nc4 {[%clk 0:02:16.1]} 16. Qc5 {[%clk 0:02:11.4]} 16...
Bc6 {[%clk 0:02:13.9]} 17. Nf4 {[%clk 0:02:11.7]} 17... Rde8 {[%clk 0:02:03.9]}
18. Bxc4 {[%clk 0:02:02.3]} 18... dxc4 {[%clk 0:02:02.7]} 19. Qxc4 {[%clk
0:02:02.7]} 19... Kb8 {[%clk 0:01:55]} 20. Nxe6 {[%clk 0:01:45.7]} 20... Qd7
{[%clk 0:01:32.4]} 21. Nf4 {[%clk 0:01:34.1]} 21... Rc8 {[%clk 0:01:19.4]} 22.
Qe6 {[%clk 0:01:13.1]} 22... Qh7 {[%clk 0:01:15.6]} 23. d5 {[%clk 0:01:04.8]}
23... Bb5 {[%clk 0:01:15.2]} 24. Qd6+ {[%clk 0:01:02.1]} 24... Ka8 {[%clk
0:01:14.4]} 25. Qb4 {[%clk 0:01:01.3]} 25... a6 {[%clk 0:01:01.3]} 26. a4 {[%clk
0:01:00.6]} 26... Rc4 {[%clk 0:01:01]} 27. Qb3 {[%clk 0:00:57.1]} 27... Rxf4
{[%clk 0:00:58.2]} 28. Bxf4 {[%clk 0:00:56.6]} 1-0

[Event "Late-Titled-Tuesday-Blitz-September-12-2023"]
[Site "Chess.com"]
[Date "2023.09.12"]
[Round "1"]
[White "SHIVACalypso"]
[Black "Bauman_Guy"]
[Result "0-1"]
[WhiteElo "2463"]
[BlackElo "2912"]
[TimeControl "180+1"]
[EndTime "14:05:22 PDT"]
[Termination "Bauman_Guy won by resignation"]

1. Nf3 {[%clk 0:02:46.7]} 1... d5 {[%clk 0:02:59.8]} 2. c4 {[%clk 0:02:47.3]}
2... c6 {[%clk 0:02:59.9]} 3. g3 {[%clk 0:02:46.9]} 3... Nf6 {[%clk 0:03:00]} 4.
Bg2 {[%clk 0:02:47.8]} 4... Bg4 {[%clk 0:03:00]} 5. O-O {[%clk 0:02:48.7]} 5...
Nbd7 {[%clk 0:03:00.1]} 6. d4 {[%clk 0:02:48.6]} 6... e6 {[%clk 0:03:00]} 7. Nc3
{[%clk 0:02:49.3]} 7... Bd6 {[%clk 0:02:56.3]} 8. h3 {[%clk 0:02:49.8]} 8... Bh5
{[%clk 0:02:56.2]} 9. g4 {[%clk 0:02:49.7]} 9... Bg6 {[%clk 0:02:56.2]} 10. Nh4
{[%clk 0:02:50.1]} 10... O-O {[%clk 0:02:55.3]} 11. Nxg6 {[%clk 0:02:50.3]}
11... hxg6 {[%clk 0:02:56.2]} 12. e4 {[%clk 0:02:50.5]} 12... dxe4 {[%clk
0:02:56.3]} 13. Nxe4 {[%clk 0:02:51.4]} 13... Nxe4 {[%clk 0:02:56.4]} 14. Bxe4
{[%clk 0:02:52.3]} 14... Qc7 {[%clk 0:02:55.3]} 15. Be3 {[%clk 0:02:50.3]} 15...
Nf6 {[%clk 0:02:52.7]} 16. Bf3 {[%clk 0:02:49.9]} 16... Bf4 {[%clk 0:02:50.6]}
17. Qc2 {[%clk 0:02:49.8]} 17... Rfd8 {[%clk 0:02:49]} 18. Rad1 {[%clk
0:02:48.7]} 18... Rd7 {[%clk 0:02:47.2]} 19. Rfe1 {[%clk 0:02:48.5]} 19... Rad8
{[%clk 0:02:46.4]} 20. Kg2 {[%clk 0:02:39.3]} 20... g5 {[%clk 0:02:41.1]} 21.
Bxf4 {[%clk 0:02:31.6]} 21... Qxf4 {[%clk 0:02:40]} 22. d5 {[%clk 0:02:30.7]}
22... cxd5 {[%clk 0:02:30]} 23. cxd5 {[%clk 0:02:31.6]} 23... Nxd5 {[%clk
0:02:29.7]} 24. Bxd5 {[%clk 0:02:20.6]} 24... Rxd5 {[%clk 0:02:29.6]} 25. Rxd5
{[%clk 0:02:20]} 25... Rxd5 {[%clk 0:02:29.7]} 26. Qc8+ {[%clk 0:02:18.9]} 26...
Kh7 {[%clk 0:02:29.5]} 27. Qxb7 {[%clk 0:02:17.6]} 27... a5 {[%clk 0:02:18.8]}
28. Qb3 {[%clk 0:02:10.6]} 28... Rd2 {[%clk 0:02:15.9]} 29. Qf3 {[%clk
0:02:08.7]} 29... Rxb2 {[%clk 0:02:06.5]} 30. Qxf4 {[%clk 0:01:52.9]} 30... gxf4
{[%clk 0:02:07.4]} 31. Re4 {[%clk 0:01:52.9]} 31... Rb4 {[%clk 0:01:54.8]} 32.
Kf3 {[%clk 0:01:48.2]} 32... g5 {[%clk 0:01:24.8]} 33. a3 {[%clk 0:01:42.2]}
33... Rb3+ {[%clk 0:01:16.7]} 34. Kg2 {[%clk 0:01:39.3]} 34... Rxa3 {[%clk
0:01:16.4]} 35. Re5 {[%clk 0:01:39.2]} 35... Kg6 {[%clk 0:01:16.3]} 36. Rb5
{[%clk 0:01:37.5]} 36... f6 {[%clk 0:01:15.3]} 37. Rb8 {[%clk 0:01:36.6]} 37...
e5 {[%clk 0:01:15.3]} 38. Rg8+ {[%clk 0:01:36.8]} 38... Kf7 {[%clk 0:01:15.5]}
39. Ra8 {[%clk 0:01:36.6]} 39... Ra2 {[%clk 0:01:15.6]} 40. Ra7+ {[%clk
0:01:37.1]} 40... Kg6 {[%clk 0:01:16]} 41. Kf3 {[%clk 0:01:37.3]} 41... Ra3+
{[%clk 0:01:14.6]} 42. Kg2 {[%clk 0:01:37.1]} 42... e4 {[%clk 0:01:15.2]} 43. h4
{[%clk 0:01:33.5]} 43... gxh4 {[%clk 0:01:14.7]} 44. Re7 {[%clk 0:01:32.6]}
44... e3 {[%clk 0:01:13.2]} 45. fxe3 {[%clk 0:01:33.5]} 45... Rxe3 {[%clk
0:01:13.3]} 46. Ra7 {[%clk 0:01:30.1]} 46... Ra3 {[%clk 0:01:13.1]} 47. Rc7
{[%clk 0:01:28.6]} 47... a4 {[%clk 0:01:11]} 48. Rc5 {[%clk 0:01:27.1]} 48...
Rg3+ {[%clk 0:01:09.7]} 0-1

[Event "Late-Titled-Tuesday-Blitz-September-12-2023"]
[Site "Chess.com"]
[Date "2023.09.12"]
[Round "1"]
[White "MikaelyanArman"]
[Black "gmpeter008"]
[Result "1-0"]
[WhiteElo "2925"]
[BlackElo "2467"]
[TimeControl "180+1"]
[EndTime "14:05:28 PDT"]
[Termination "MikaelyanArman won by resignation"]

1. d4 {[%clk 0:03:00.9]} 1... Nf6 {[%clk 0:02:59.8]} 2. Nf3 {[%clk 0:03:01]}
2... d5 {[%clk 0:03:00.1]} 3. c4 {[%clk 0:03:00.1]} 3... e6 {[%clk 0:03:00.6]}
4. Nc3 {[%clk 0:02:59.1]} 4... Be7 {[%clk 0:03:00.5]} 5. Bf4 {[%clk 0:02:58.5]}
5... O-O {[%clk 0:03:00]} 6. e3 {[%clk 0:02:59.2]} 6... b6 {[%clk 0:02:58.6]} 7.
Bd3 {[%clk 0:02:58]} 7... Bb7 {[%clk 0:02:56.3]} 8. O-O {[%clk 0:02:58]} 8...
Nbd7 {[%clk 0:02:56.6]} 9. cxd5 {[%clk 0:02:54]} 9... exd5 {[%clk 0:02:56.4]}
10. Ne5 {[%clk 0:02:53.2]} 10... c5 {[%clk 0:02:56.2]} 11. Qf3 {[%clk 0:02:51]}
11... a6 {[%clk 0:02:32.9]} 12. Rad1 {[%clk 0:02:44.5]} 12... b5 {[%clk
0:02:25.9]} 13. Qh3 {[%clk 0:02:23.8]} 13... g6 {[%clk 0:02:05.1]} 14. dxc5
{[%clk 0:02:03.3]} 14... Nxc5 {[%clk 0:02:03]} 15. Bb1 {[%clk 0:02:03.5]} 15...
Ne6 {[%clk 0:01:58.3]} 16. Bh6 {[%clk 0:01:59.6]} 16... d4 {[%clk 0:01:29.1]}
17. Bxf8 {[%clk 0:01:54.5]} 17... Qxf8 {[%clk 0:01:29.3]} 18. Ne2 {[%clk
0:01:47.3]} 18... Ng5 {[%clk 0:01:14.9]} 19. Qg3 {[%clk 0:01:34.9]} 19... Nh5
{[%clk 0:01:12.8]} 20. Qg4 {[%clk 0:01:34.2]} 20... dxe3 {[%clk 0:00:45.5]} 21.
fxe3 {[%clk 0:01:35.1]} 21... f6 {[%clk 0:00:33.4]} 22. Bxg6 {[%clk 0:01:24.3]}
22... Qh6 {[%clk 0:00:17]} 1-0

[Event "Late-Titled-Tuesday-Blitz-September-12-2023"]
[Site "Chess.com"]
[Date "2023.09.12"]
[Round "1"]
[White "stasOR4ik"]
[Black "Arystanner"]
[Result "0-1"]
[WhiteElo "2434"]
[BlackElo "2820"]
[TimeControl "180+1"]
[EndTime "14:05:30 PDT"]
[Termination "Arystanner won by checkmate"]

1. c4 {[%clk 0:02:59.1]} 1... Nf6 {[%clk 0:03:00.2]} 2. Nc3 {[%clk 0:02:58.9]}
2... g6 {[%clk 0:03:01.1]} 3. g3 {[%clk 0:02:59.3]} 3... d6 {[%clk 0:03:02]} 4.
Bg2 {[%clk 0:02:59.5]} 4... Bg7 {[%clk 0:03:02.9]} 5. e4 {[%clk 0:02:58.9]} 5...
O-O {[%clk 0:03:02.8]} 6. Nge2 {[%clk 0:02:58.9]} 6... c5 {[%clk 0:03:02.1]} 7.
O-O {[%clk 0:02:59.2]} 7... Nc6 {[%clk 0:03:02.8]} 8. a3 {[%clk 0:02:59.4]} 8...
a5 {[%clk 0:02:55]} 9. Rb1 {[%clk 0:02:57.7]} 9... Ne8 {[%clk 0:02:55.3]} 10. d3
{[%clk 0:02:57.7]} 10... Nc7 {[%clk 0:02:55.4]} 11. Bd2 {[%clk 0:02:56.8]} 11...
Ne6 {[%clk 0:02:55.4]} 12. Nd5 {[%clk 0:02:56.9]} 12... Ned4 {[%clk 0:02:55.1]}
13. Nxd4 {[%clk 0:02:55.3]} 13... Nxd4 {[%clk 0:02:55]} 14. b4 {[%clk
0:02:55.8]} 14... axb4 {[%clk 0:02:55.9]} 15. axb4 {[%clk 0:02:56.6]} 15... e6
{[%clk 0:02:55.5]} 16. Nf4 {[%clk 0:02:50.7]} 16... Ra2 {[%clk 0:02:42.8]} 17.
bxc5 {[%clk 0:02:47.2]} 17... dxc5 {[%clk 0:02:43.7]} 18. Bc3 {[%clk 0:02:39]}
18... Qc7 {[%clk 0:02:19.3]} 19. h4 {[%clk 0:02:31.9]} 19... Bd7 {[%clk
0:02:15.7]} 20. Bxd4 {[%clk 0:02:22.2]} 20... Bxd4 {[%clk 0:02:15.5]} 21. Qb3
{[%clk 0:02:22.3]} 21... Ra7 {[%clk 0:02:15.6]} 22. Qb6 {[%clk 0:02:21.8]} 22...
Qxb6 {[%clk 0:02:15.3]} 23. Rxb6 {[%clk 0:02:20.7]} 23... Bc6 {[%clk 0:02:12.6]}
24. Ne2 {[%clk 0:02:10.4]} 24... Bg7 {[%clk 0:02:11.1]} 25. f4 {[%clk
0:01:58.9]} 25... Ra2 {[%clk 0:02:01.2]} 26. Rf2 {[%clk 0:01:48.2]} 26... Rd8
{[%clk 0:02:01]} 27. e5 {[%clk 0:01:43.4]} 27... Rxd3 {[%clk 0:02:00.4]} 28.
Bxc6 {[%clk 0:01:42.3]} 28... bxc6 {[%clk 0:02:01.1]} 29. Rxc6 {[%clk
0:01:37.2]} 29... Rdd2 {[%clk 0:01:49.5]} 30. Kf1 {[%clk 0:01:37]} 30... Bf8
{[%clk 0:01:49.7]} 31. Rc7 {[%clk 0:01:27.1]} 31... h5 {[%clk 0:01:48.5]} 32.
Rb7 {[%clk 0:01:22.8]} 32... Rac2 {[%clk 0:01:47.6]} 33. Ke1 {[%clk 0:01:13.6]}
33... Ra2 {[%clk 0:01:42.9]} 34. Rg2 {[%clk 0:01:10.8]} 34... Rdc2 {[%clk
0:01:43]} 35. g4 {[%clk 0:00:59.3]} 35... hxg4 {[%clk 0:01:43]} 36. Kf1 {[%clk
0:00:41.7]} 36... g3 {[%clk 0:01:39]} 37. Ke1 {[%clk 0:00:40.3]} 37... Ra1+
{[%clk 0:01:38.3]} 38. Nc1 {[%clk 0:00:40.4]} 38... Raxc1# {[%clk 0:01:38.6]}
0-1

[Event "Late-Titled-Tuesday-Blitz-September-12-2023"]
[Site "Chess.com"]
[Date "2023.09.12"]
[Round "1"]
[White "bazar-wokzal"]
[Black "KamlaPasand"]
[Result "0-1"]
[WhiteElo "2564"]
[BlackElo "2297"]
[TimeControl "180+1"]
[EndTime "14:05:31 PDT"]
[Termination "KamlaPasand won by checkmate"]

1. e4 {[%clk 0:02:56.8]} 1... e5 {[%clk 0:03:00]} 2. Bc4 {[%clk 0:02:53.5]} 2...
Nf6 {[%clk 0:02:58.6]} 3. d3 {[%clk 0:02:53.2]} 3... c6 {[%clk 0:02:58.3]} 4.
Nf3 {[%clk 0:02:52.8]} 4... d5 {[%clk 0:02:58.2]} 5. Bb3 {[%clk 0:02:52.5]} 5...
Nbd7 {[%clk 0:02:56]} 6. Nc3 {[%clk 0:02:46.5]} 6... dxe4 {[%clk 0:02:55.1]} 7.
Ng5 {[%clk 0:02:45.4]} 7... Nd5 {[%clk 0:02:50.5]} 8. dxe4 {[%clk 0:02:32.7]}
8... Nxc3 {[%clk 0:02:50.4]} 9. bxc3 {[%clk 0:02:19.5]} 9... Qa5 {[%clk
0:02:46.7]} 10. Bxf7+ {[%clk 0:02:14.9]} 10... Ke7 {[%clk 0:02:45.4]} 11. Bb3
{[%clk 0:02:10.4]} 11... Nf6 {[%clk 0:02:40.7]} 12. O-O {[%clk 0:02:06.3]} 12...
Bg4 {[%clk 0:02:40.1]} 13. f3 {[%clk 0:02:02]} 13... Rd8 {[%clk 0:02:40]} 14.
Qe2 {[%clk 0:01:53.6]} 14... Bc8 {[%clk 0:02:39]} 15. Nf7 {[%clk 0:01:47.8]}
15... Qxc3 {[%clk 0:02:32.1]} 16. Nxh8 {[%clk 0:01:36.3]} 16... Ke8 {[%clk
0:02:28]} 17. Bg5 {[%clk 0:01:22.6]} 17... Bc5+ {[%clk 0:02:27.8]} 18. Kh1
{[%clk 0:01:22.1]} 18... Ke7 {[%clk 0:02:27.6]} 19. Nf7 {[%clk 0:01:20.3]} 19...
Rf8 {[%clk 0:02:24.7]} 20. Bd2 {[%clk 0:01:12.7]} 20... Qd4 {[%clk 0:02:21.3]}
21. c3 {[%clk 0:01:09]} 21... Qd7 {[%clk 0:02:17.3]} 22. Nxe5 {[%clk 0:01:08.2]}
22... Qc7 {[%clk 0:02:17.9]} 23. Nd3 {[%clk 0:00:57.8]} 23... Bb6 {[%clk
0:02:17.1]} 24. c4 {[%clk 0:00:54.8]} 24... Nh5 {[%clk 0:02:16]} 25. Bg5+ {[%clk
0:00:50.3]} 25... Ke8 {[%clk 0:02:15.2]} 26. c5 {[%clk 0:00:47.7]} 26... Ng3+
{[%clk 0:02:13.7]} 27. hxg3 {[%clk 0:00:46.7]} 27... Qxg3 {[%clk 0:02:14.6]} 28.
Qe3 {[%clk 0:00:29.5]} 28... Bc7 {[%clk 0:02:13.2]} 29. e5 {[%clk 0:00:27.8]}
29... Rf5 {[%clk 0:02:09.5]} 30. Qf2 {[%clk 0:00:13]} 30... Qxg5 {[%clk
0:02:08]} 31. f4 {[%clk 0:00:13]} 31... Qh6+ {[%clk 0:02:06.5]} 32. Kg1 {[%clk
0:00:13.2]} 32... Rh5 {[%clk 0:02:06.7]} 33. Qg3 {[%clk 0:00:12.6]} 33... g5
{[%clk 0:02:03.7]} 34. f5 {[%clk 0:00:10.8]} 34... g4 {[%clk 0:01:59.8]} 35. f6
{[%clk 0:00:11.1]} 35... Rh1+ {[%clk 0:01:51.7]} 36. Kf2 {[%clk 0:00:10.9]}
36... Qd2# {[%clk 0:01:52.6]} 0-1